fUST/lending_fUST_20260105
["ID","MTS","AMOUNT","RATE_DAILY","PERIOD"]
[400472974,1767621038813,-506.08191044,0.00015897,2]
[400472975,1767621038823,-506.08191044,0.00015897,2]
[400472976,1767621038832,-506.08191044,0.00015897,2]
[400472977,1767621038841,-506.08191044,0.00015897,2]
[400472978,1767621038850,-628.0,0.00015898,2]
[400472979,1767621038859,-1494.582,0.00015898,2]
[400472980,1767621038869,-3000.0,0.00016,2]
[400472981,1767621038879,-3000.0,0.0001601,2]
[400472982,1767621038888,-3000.0,0.0001602,2]
[400472983,1767621038897,-4525.986123,0.0001603,2]
[400472984,1767621038906,-2852.84633533,0.00016362,5]
[400472985,1767621038916,-500.0,0.00016438,2]
[400472986,1767621038925,-500.0,0.00016438,2]
[400472987,1767621038934,-500.0,0.00016438,2]
[400472988,1767621038943,-500.0,0.00016438,2]
[400472989,1767621038953,-500.0,0.00016438,2]
[400472990,1767621038963,-500.0,0.00016438,2]
[400472991,1767621038973,-500.0,0.00016438,2]
[400472992,1767621038982,-500.0,0.00016438,2]
[400472993,1767621038992,-500.0,0.00016438,2]
[400472994,1767621039002,-500.0,0.00016438,2]
[400472995,1767621039011,-500.0,0.00016438,2]
[400472996,1767621039021,-500.0,0.00016438,2]
[400472997,1767621039031,-500.0,0.00016438,2]
[400472998,1767621039040,-500.0,0.00016438,2]
[400472999,1767621039050,-500.0,0.00016438,2]
[400473000,1767621039059,-500.0,0.00016438,2]
[400473001,1767621039069,-500.0,0.00016438,2]
[400473002,1767621039078,-500.0,0.00016438,2]
[400473003,1767621039087,-500.0,0.00016438,2]
[400473004,1767621039097,-500.0,0.00016438,2]
[400473005,1767621039107,-500.0,0.00016438,2]
[400473006,1767621039116,-500.0,0.00016438,2]
[400473007,1767621039125,-500.0,0.00016438,2]
[400473008,1767621039135,-500.0,0.00016438,2]
[400473009,1767621039146,-183.68559955,0.00016438,2]
[400473010,1767621039156,-500.0,0.00016438,2]
[400473011,1767621039166,-500.0,0.00016438,2]
[400473012,1767621039175,-500.0,0.00016438,2]
[400473013,1767621039184,-500.0,0.00016438,2]
[400473014,1767621039194,-500.0,0.00016438,2]
[400473015,1767621039203,-500.0,0.00016438,2]
[400473016,1767621039214,-151.0,0.00016996,2]
[400473017,1767621039224,-864.0,0.00017051,2]
[400473018,1767621039232,-204.0,0.00017444,2]
[400473019,1767621039241,-151.0,0.00017554,2]
[400473020,1767621039250,-325.0,0.00017926,2]
[400473021,1767621039260,-1728.0,0.00017926,2]
[400473022,1767621039269,-178.21017424,0.00018,2]
[400473023,1767621039278,-151.0,0.00018113,2]
[400473024,1767621039287,-461.0,0.00018256,5]
[400473025,1767621039297,-500.0,0.00018356,7]
[400473026,1767621039305,-1238.365704,0.000185,2]
[400473027,1767621039314,-151.0,0.00018671,2]
[400473028,1767621039324,-1000.0,0.00018756,2]
[400473029,1767621039333,-1000.0,0.00019,2]
[400473030,1767621039343,-4654.74389222,0.00019006,9]
[400473031,1767621039352,-168.0,0.00019008,2]
[400473032,1767621039361,-698.98518,0.00019178,2]
[400473033,1767621039370,-698.98518,0.00019178,2]
[400473034,1767621039380,-698.98518,0.00019178,2]
[400473035,1767621039389,-698.98518,0.00019178,2]
[400473036,1767621039398,-698.98518,0.00019178,2]
[400473037,1767621039407,-698.98518,0.00019178,2]
[400473038,1767621039416,-698.98518,0.00019178,2]
[400473039,1767621039425,-698.98518,0.00019178,2]
[400473040,1767621039434,-698.98518,0.00019178,2]
[400473041,1767621039443,-698.98518,0.00019178,2]
[400473042,1767621039453,-698.98518,0.00019178,2]
[400473043,1767621039462,-698.98518,0.00019178,2]
[400473044,1767621039471,-698.98518,0.00019178,2]
[400473045,1767621039480,-698.98518,0.00019178,2]
[400473046,1767621039489,-698.98518,0.00019178,2]
[400473047,1767621039498,-698.98518,0.00019178,2]
[400473048,1767621039507,-698.98518,0.00019178,2]
[400473049,1767621039516,-698.98518,0.00019178,2]
[400473050,1767621039526,-698.98518,0.00019178,2]
[400473051,1767621039535,-698.985178,0.00019178,2]
[400473052,1767621039544,-151.0,0.00019178,2]
[400473053,1767621039553,-151.0,0.00019178,2]
[400473054,1767621039562,-151.0,0.00019178,2]
[400473055,1767621039571,-151.0,0.00019178,2]
[400473056,1767621039580,-151.0,0.00019178,2]
[400473057,1767621039589,-151.0,0.00019178,2]
[400473058,1767621039598,-151.0,0.00019178,2]
[400473059,1767621039607,-151.0,0.00019178,2]
[400473060,1767621039617,-151.0,0.00019178,2]
[400473061,1767621039626,-151.0,0.00019178,2]
[400473062,1767621039635,-151.0,0.00019178,2]
[400473063,1767621039644,-151.0,0.00019178,2]
[400473064,1767621039653,-289.594708,0.00019178,2]
[400473065,1767621039662,-151.0,0.00019178,2]
[400473066,1767621039671,-151.0,0.00019178,2]
[400473067,1767621039680,-196.753528,0.00019178,2]
[400473068,1767621039689,-151.0,0.00019229,2]
[400473069,1767621039700,-168.0,0.00019277,2]
[400473070,1767621039709,-168.0,0.00019295,2]
[400473071,1767621039718,-167.67,0.000193,2]
[400473072,1767621039727,-33980.64,0.000193,2]
[400473073,1767621039736,-231.0,0.00019444,2]
[400473074,1767621039745,-168.0,0.00019487,2]
[400473075,1767621039754,-1000.0,0.000195,2]
[400473076,1767621039763,-151.0,0.00019787,2]
[400473077,1767621039772,-151.0,0.000198,2]
[400473078,1767621039781,-168.0,0.00019819,2]
[400473079,1767621039789,-168.0,0.0001983,2]
[400473080,1767621039798,-168.0,0.00019844,2]
[400473081,1767621039807,-146101.78240574,0.000199,2]
[400473082,1767621039819,-469.35654473,0.000199,2]
[400473105,1767621045377,-791.2784889,0.000199,2]
[400473240,1767621061896,186.58,7.912e-05,2]
[400473241,1767621062821,223.9,8.229e-05,2]
[400473242,1767621063417,261.22,8.545e-05,2]
[400473243,1767621063782,298.53,8.862e-05,2]
[400473244,1767621064276,335.85,9.178e-05,2]
[400473248,1767621135668,165.55,8.655e-05,2]
[400473249,1767621135987,186.24,8.964e-05,2]
[400473250,1767621157711,-206.94,9.273e-05,2]
[400473258,1767621741463,151.0,0.00030136,120]
[400473275,1767622232495,-600.0,0.00015,2]
[400473276,1767622232505,-2429.76356748,0.00015486,2]
[400473277,1767622232517,-1495.92169305,0.00015486,2]
[400473278,1767622232554,-504.07830695,0.00015486,2]
[400473279,1767622238467,-1485.67731641,0.00015486,2]
[400473280,1767622238479,-410.19,0.00015486,2]
[400473281,1767622238490,-370.60755416,0.00015486,2]
[400473282,1767622238526,-544.79095787,0.00015486,2]
[400473283,1767622238537,-2541.83438832,0.00015486,2]
[400473284,1767622238548,-886.6992,0.00015486,2]
[400473352,1767622246520,-637.3082349,0.00015386,2]
[400473353,1767622246530,-10623.32053107,0.00015486,2]
[400473354,1767622246540,-398.51888114,0.00015486,2]
[400473355,1767622246549,-1047.31313981,0.00015586,3]
[400473356,1767622246558,-1100.27994231,0.00015686,2]
[400473357,1767622246567,-1041.66666667,0.00015932,2]
[400473358,1767622246576,-2877.014018,0.00016,2]
[400473359,1767622246690,-122.985982,0.00016,2]
[400473360,1767622246700,-354.05927657,0.00016009,2]
[400473361,1767622246713,-145.94072343,0.00016009,2]
[400473362,1767622246722,-231.33176682,0.00016009,2]
[400473363,1767622246731,-500.0,0.00016009,2]
[400473364,1767622246741,-500.0,0.00016009,2]
[400473365,1767622246751,-500.0,0.00016009,2]
[400473366,1767622246761,-500.0,0.00016009,2]
[400473367,1767622246770,-500.0,0.00016009,2]
[400473368,1767622246779,-500.0,0.00016009,2]
[400473369,1767622246789,-346.84113402,0.00016009,2]
[400473370,1767622246798,-500.0,0.00016009,2]
[400473371,1767622246808,-500.0,0.00016009,2]
[400473372,1767622246817,-500.0,0.00016009,2]
[400473373,1767622246826,-500.0,0.00016009,2]
[400473374,1767622246836,-500.0,0.00016009,2]
[400473375,1767622246845,-500.0,0.00016009,2]
[400473376,1767622246854,-3000.0,0.0001601,2]
[400473377,1767622246864,-3000.0,0.0001602,2]
[400473378,1767622246873,-5770.621601,0.0001603,2]
[400473379,1767622246882,-250.0,0.00016337,2]
[400473380,1767622246891,-500.0,0.00016438,2]
[400473381,1767622246900,-518.36855996,0.00016438,2]
[400473382,1767622246910,-500.0,0.00016438,2]
[400473383,1767622246919,-1944.62627962,0.00016844,5]
[400473384,1767622246928,-500.0,0.0001688,2]
[400473385,1767622246938,-250.0,0.0001688,2]
[400473386,1767622246947,-500.0,0.0001688,2]
[400473387,1767622246956,-324.93895613,0.0001688,2]
[400473388,1767622246965,-250.0,0.0001688,2]
[400473389,1767622246975,-259.8650604,0.0001688,2]
[400473390,1767622246984,-151.0,0.000169,2]
[400473391,1767622246994,-177.0,0.00017527,2]
[400473392,1767622247003,-2841.93941944,0.00018101,8]
[400473393,1767622247013,-500.0,0.00018356,7]
[400473394,1767622247022,-153.0,0.00019342,2]
[400473395,1767622247032,-153.0,0.00019342,2]
[400473396,1767622247041,-153.0,0.00019342,2]
[400473397,1767622247050,-153.0,0.00019342,2]
[400473398,1767622247060,-156.0547398,0.00019342,2]
[400473399,1767622247069,-153.0,0.00019352,2]
[400473400,1767622247078,-3739.25255925,0.00019359,10]
[400473401,1767622247087,-204.0,0.00019527,2]
[400473402,1767622247096,-168.0,0.0001965,2]
[400473403,1767622247106,-168.0,0.00019872,2]
[400473404,1767622247115,-193.52164343,0.000199,2]
[400473405,1767622247124,-18669.79236205,0.0002,2]
[400473406,1767622247135,-1172.50797802,0.0002,2]
[400473407,1767622247146,-500.16552,0.0002,2]
[400473408,1767622247156,-4692.8644744,0.0002,2]
[400473409,1767622247167,-392.46034728,0.0002,2]
[400473410,1767622247177,-3107.34438229,0.0002,2]
[400473411,1767622247188,-2888.8024293,0.0002,2]
[400473412,1767622247198,-476.59,0.0002,2]
[400473479,1767623432574,-2591.78264005,0.00012877,2]
[400473480,1767623432585,-1077.32915382,0.00012877,2]
[400473508,1767623438640,-1330.88820613,0.00012877,2]
[400473511,1767623438652,-1041.66666667,0.00013266,2]
[400473513,1767623438662,-500.0,0.00013273,2]
[400473515,1767623438671,-500.0,0.00013273,2]
[400473517,1767623438681,-500.0,0.00013273,2]
[400473518,1767623438691,-500.0,0.00013273,2]
[400473519,1767623438700,-500.0,0.00013273,2]
[400473520,1767623438710,-500.0,0.00013273,2]
[400473521,1767623438720,-500.0,0.00013273,2]
[400473522,1767623438729,-500.0,0.00013273,2]
[400473523,1767623438739,-500.0,0.00013273,2]
[400473524,1767623438749,-500.0,0.00013273,2]
[400473525,1767623438758,-500.0,0.00013273,2]
[400473526,1767623438777,-500.0,0.00013273,2]
[400473527,1767623438787,-500.0,0.00013273,2]
[400473528,1767623438796,-500.0,0.00013273,2]
[400473529,1767623438808,-500.0,0.00013273,2]
[400473530,1767623438820,-500.0,0.00013273,2]
[400473531,1767623438830,-500.0,0.00013695,2]
[400473532,1767623438839,-500.0,0.00013695,2]
[400473533,1767623438849,-500.0,0.00013695,2]
[400473534,1767623438859,-500.0,0.00013695,2]
[400473535,1767623438868,-500.0,0.00013695,2]
[400473536,1767623438878,-500.0,0.00013695,2]
[400473537,1767623438887,-500.0,0.00013695,2]
[400473538,1767623438898,-500.0,0.00013695,2]
[400473539,1767623438912,-236.41761153,0.00013695,2]
[400473540,1767623438921,-500.0,0.00013695,2]
[400473541,1767623438931,-500.0,0.00013695,2]
[400473542,1767623438941,-500.0,0.00013695,2]
[400473543,1767623438951,-500.0,0.00013695,2]
[400473544,1767623438962,-500.0,0.00013695,2]
[400473545,1767623438972,-500.0,0.00013695,2]
[400473546,1767623438984,-500.0,0.00013695,2]
[400473547,1767623438994,-500.0,0.00013695,2]
[400473548,1767623439004,-500.0,0.00013695,2]
[400473549,1767623439014,-500.0,0.00013695,2]
[400473550,1767623439024,-500.0,0.00013695,2]
[400473551,1767623439033,-500.0,0.00013695,2]
[400473552,1767623439043,-500.0,0.00013695,2]
[400473553,1767623439053,-220.332689,0.00013699,2]
[400473554,1767623439067,-531.011998,0.00013699,2]
[400473555,1767623439078,-497.49623502,0.00013699,2]
[400473556,1767623439088,-500.0,0.00013699,2]
[400473557,1767623439099,-500.0,0.00013717,2]
[400473558,1767623439109,-500.0,0.00013717,2]
[400473559,1767623439119,-500.0,0.00013717,2]
[400473560,1767623439132,-500.0,0.00013717,2]
[400473561,1767623439142,-500.0,0.00013717,2]
[400473562,1767623439152,-500.0,0.00013717,2]
[400473563,1767623439162,-500.0,0.00013717,2]
[400473564,1767623439171,-500.0,0.00013717,2]
[400473565,1767623439182,-500.0,0.00013717,2]
[400473566,1767623439192,-500.0,0.00013717,2]
[400473567,1767623439202,-500.0,0.00013717,2]
[400473568,1767623439212,-48859.70115284,0.00013718,2]
[400473569,1767623439225,-346.16352336,0.00013718,2]
[400473570,1767623439237,-4827.5805675,0.00013718,2]
[400473571,1767623439248,-3588.67918169,0.00013718,2]
[400473572,1767623439259,-2799.18313553,0.00013718,2]
[400473573,1767623439270,-266.8,0.00013718,2]
[400473574,1767623439281,-4476.53,0.00013718,2]
[400473575,1767623439293,-106702.83306801,0.00013718,2]
[400473576,1767623439303,-500.0,0.00013819,2]
[400473577,1767623439312,-500.0,0.00013819,2]
[400473578,1767623439323,-198.61377402,0.00013821,2]
[400473579,1767623439333,-500.0,0.00013821,2]
[400473580,1767623439342,-1000.0,0.00013821,2]
[400473581,1767623439351,-1000.0,0.00013821,2]
[400473582,1767623439361,-1000.0,0.00013821,2]
[400473583,1767623439370,-1000.0,0.00013821,2]
[400473584,1767623439379,-1000.0,0.00013821,2]
[400473585,1767623439389,-250.79014339,0.00013821,2]
[400473586,1767623439398,-1000.0,0.00013821,2]
[400473587,1767623439407,-311.76362461,0.00013821,2]
[400473588,1767623439417,-500.0,0.00013821,2]
[400473589,1767623439427,-500.0,0.00013821,2]
[400473590,1767623439436,-1000.0,0.00013821,2]
[400473591,1767623439445,-1023.46164113,0.00014175,2]
[400473592,1767623439455,-503.81920107,0.00014247,2]
[400473593,1767623439464,-1896.92328226,0.0001448,2]
[400473594,1767623439474,-157.69717381,0.00014968,2]
[400473595,1767623439483,-500.0,0.00014986,2]
[400473596,1767623439492,-605.301663,0.00014988,2]
[400473597,1767623439502,-500.0,0.00014988,2]
[400473598,1767623439512,-500.0,0.00014988,2]
[400473599,1767623439522,-500.0,0.00014988,2]
[400473600,1767623439531,-500.0,0.00014988,2]
[400473601,1767623439540,-441.41727287,0.00014989,2]
[400473602,1767623439550,-500.0,0.00014989,2]
[400473603,1767623439559,-500.0,0.00014989,2]
[400473604,1767623439569,-184.837897,0.00015068,2]
[400473605,1767623439578,-177.0,0.00015073,2]
[400473606,1767623439587,-157.69717379,0.00015198,2]
[400473607,1767623439596,-157.69717379,0.00015428,2]
[400473608,1767623439609,-157.69717379,0.00015658,2]
[400473609,1767623439618,-157.69717379,0.00015888,2]
[400473610,1767623439628,-151.0,0.00016762,2]
[400473611,1767623439637,-204.0,0.00017073,2]
[400473612,1767623439647,-151.0,0.00017086,2]
[400473613,1767623439656,-178.0,0.00017104,2]
[400473614,1767623439666,-416.0,0.00017104,2]
[400473615,1767623439676,-3643.84656453,0.00017164,6]
[400473616,1767623439685,-370.79784929,0.0001717,5]
[400473617,1767623439695,-151.0,0.00017409,2]
[400473618,1767623439704,-151.0,0.00017733,2]
[400473619,1767623439713,-10167.63594409,0.0001799,2]
[400473624,1767623440776,-484.86821652,0.0001799,2]
[400473625,1767623440850,-3040.73306436,0.0001799,2]
[400473673,1767623446218,-11063.3464918,0.0001799,2]
[400473674,1767623446230,-496.786967,0.0001799,2]
[400473686,1767623446756,-1743.40829245,0.0001799,2]
[400473687,1767623446767,-277.312261,0.0001799,2]
[400473692,1767623555662,599.0,9.273e-05,2]
[400473694,1767623619703,441.3529978,0.00030136,120]
[400473695,1767623701227,155.0,6e-05,2]
[400473697,1767623711699,200.0,0.0001,4]
[400473698,1767623712175,200.0,0.0001,5]
[400473700,1767623712484,200.0,0.0001,9]
[400473702,1767623715002,78535.0,0.00030137,120]
[400473704,1767623730561,192.38,7.55e-05,2]
[400473705,1767623731074,240.47,7.864e-05,2]
[400473706,1767623731512,288.57,8.179e-05,2]
[400473707,1767623732029,336.66,8.494e-05,2]
[400473708,1767623732495,384.76,8.808e-05,2]
[400473709,1767623733466,432.85,9.123e-05,2]
[400473710,1767623804912,169.55,8.509e-05,2]
[400473711,1767623805421,193.78,8.824e-05,2]
[400473712,1767623805858,218.0,9.139e-05,2]
[400473713,1767623817160,188.8,0.0003013,120]
[400473714,1767623836050,5000.0,0.0001,10]
[400473716,1767623859553,5000.0,0.0001,10]
[400473717,1767623880670,165.15,5.994e-05,2]
[400473719,1767624006672,153.0,8.3e-07,2]
[400473720,1767624007789,153.0,8.3e-07,2]
[400473725,1767624094794,500.0,0.00030136,120]
[400473726,1767624095043,500.0,0.00030136,120]
[400473727,1767624095294,500.0,0.00030136,120]
[400473728,1767624095543,500.0,0.00030136,120]
[400473729,1767624095806,500.0,0.00030136,120]
[400473730,1767624096045,500.0,0.00030136,120]
[400473731,1767624096291,155.11787114,0.00030136,120]
[400473732,1767624099347,842.97,0.00030136,120]
[400473733,1767624099590,842.97,0.00030136,120]
[400473734,1767624099825,842.97,0.00030136,120]
[400473735,1767624100070,842.97,0.00030136,120]
[400473736,1767624100496,842.97,0.00030136,120]
[400473737,1767624100724,842.97,0.00030136,120]
[400473738,1767624100992,842.97,0.00030136,120]
[400473739,1767624101232,842.97,0.00030136,120]
[400473740,1767624101488,842.97,0.00030136,120]
[400473741,1767624101812,842.97,0.00030136,120]
[400473742,1767624102085,842.97,0.00030136,120]
[400473743,1767624102343,842.97,0.00030136,120]
[400473744,1767624102608,842.97,0.00030136,120]
[400473745,1767624102844,842.97,0.00030136,120]
[400473746,1767624103082,842.97,0.00030136,120]
[400473747,1767624103487,842.97,0.00030136,120]
[400473748,1767624103753,842.97,0.00030136,120]
[400473749,1767624104023,842.97,0.00030136,120]
[400473750,1767624104264,842.97,0.00030136,120]
[400473751,1767624104548,842.97,0.00030136,120]
[400473752,1767624104787,842.97,0.00030136,120]
[400473753,1767624105049,842.97,0.00030136,120]
[400473754,1767624105294,842.97,0.00030136,120]
[400473755,1767624105540,843.14477024,0.00030136,120]
[400473760,1767624323232,500.0,0.00030136,120]
[400473761,1767624323477,500.0,0.00030136,120]
[400473762,1767624323716,500.0,0.00030136,120]
[400473763,1767624323949,500.0,0.00030136,120]
[400473764,1767624324216,500.0,0.00030136,120]
[400473765,1767624324458,500.0,0.00030136,120]
[400473766,1767624324704,500.0,0.00030136,120]
[400473784,1767624608485,237.56730097,0.00030136,120]
[400473808,1767624631783,-2117.87919292,0.00013452,10]
[400473809,1767624631793,-1041.66666667,0.00013586,2]
[400473811,1767624631804,-500.0,0.00013594,2]
[400473813,1767624631814,-500.0,0.00013594,2]
[400473814,1767624631823,-500.0,0.00013594,2]
[400473816,1767624631833,-500.0,0.00013594,2]
[400473818,1767624631844,-500.0,0.00013594,2]
[400473820,1767624631853,-500.0,0.00013594,2]
[400473822,1767624631862,-500.0,0.00013594,2]
[400473824,1767624631872,-500.0,0.00013594,2]
[400473825,1767624631881,-500.0,0.00013594,2]
[400473827,1767624631890,-500.0,0.00013594,2]
[400473829,1767624631900,-192.93529017,0.00013594,2]
[400473831,1767624631909,-500.0,0.00013594,2]
[400473832,1767624631918,-500.0,0.00013594,2]
[400473833,1767624631927,-500.0,0.00013594,2]
[400473834,1767624631936,-500.0,0.00013594,2]
[400473835,1767624631945,-500.0,0.00013594,2]
[400473836,1767624631954,-500.0,0.00013594,2]
[400473837,1767624631963,-500.0,0.00013594,2]
[400473838,1767624631972,-625.80665101,0.00013594,2]
[400473839,1767624631981,-500.0,0.00013594,2]
[400473840,1767624631990,-500.0,0.00013594,2]
[400473841,1767624631999,-256.48159013,0.00013594,2]
[400473842,1767624632009,-500.0,0.00013594,2]
[400473843,1767624632018,-500.0,0.00013594,2]
[400473844,1767624632029,-500.0,0.00013594,2]
[400473845,1767624632038,-500.0,0.00013594,2]
[400473846,1767624632048,-500.0,0.00013594,2]
[400473847,1767624632058,-500.0,0.00013594,2]
[400473848,1767624632067,-500.0,0.00013594,2]
[400473849,1767624632076,-500.0,0.00013594,2]
[400473850,1767624632087,-500.0,0.00013594,2]
[400473851,1767624632097,-500.0,0.00013594,2]
[400473852,1767624632107,-500.0,0.00013594,2]
[400473853,1767624632117,-500.0,0.00013594,2]
[400473854,1767624632126,-500.0,0.00013594,2]
[400473855,1767624632147,-500.0,0.00013594,2]
[400473856,1767624632158,-500.0,0.00013594,2]
[400473857,1767624632168,-500.0,0.00013594,2]
[400473858,1767624632179,-500.0,0.00013594,2]
[400473859,1767624632190,-500.0,0.00013594,2]
[400473860,1767624632200,-500.0,0.00013594,2]
[400473861,1767624632210,-500.0,0.00013594,2]
[400473862,1767624632220,-500.0,0.00013594,2]
[400473863,1767624632231,-500.0,0.00013594,2]
[400473864,1767624632242,-500.0,0.00013594,2]
[400473865,1767624632255,-500.0,0.00013594,2]
[400473866,1767624632265,-888.6595553,0.00013699,2]
[400473867,1767624632275,-500.0,0.00013699,2]
[400473868,1767624632284,-1056.45203926,0.00014175,2]
[400473869,1767624632295,-312.4152694,0.00014247,2]
[400473870,1767624632305,-1962.90407853,0.00014919,2]
[400473871,1767624632317,-177.0,0.0001552,2]
[400473872,1767624632327,-2869.35611779,0.00016246,4]
[400473873,1767624632339,-168.70761777,0.00016438,2]
[400473874,1767624632349,-204.0,0.0001752,2]
[400473875,1767624632359,-505.4,0.00018,2]
[400473876,1767624632369,-151.0,0.00018057,2]
[400473877,1767624632379,-500.0,0.00018356,7]
[400473878,1767624632388,-151.0,0.00018381,2]
[400473879,1767624632398,-151.0,0.00018705,2]
[400473880,1767624632409,-4682.26019633,0.00018898,9]
[400473881,1767624632418,-1412.44595847,0.00018929,2]
[400473882,1767624632428,-151.0,0.00019029,2]
[400473883,1767624632438,-234.35,0.00019252,2]
[400473884,1767624632449,-150.99,0.00019252,2]
[400473885,1767624632459,-2985.77,0.000193,2]
[400473886,1767624632468,-500.017252,0.000193,2]
[400473887,1767624632478,-500.017252,0.000193,2]
[400473888,1767624632488,-500.017252,0.000193,2]
[400473889,1767624632498,-500.017252,0.000193,2]
[400473890,1767624632508,-300.0,0.00019315,2]
[400473891,1767624632518,-151.0,0.00019352,2]
[400473892,1767624632528,-450.0,0.00019452,2]
[400473893,1767624632538,-599.7286954,0.00019507,2]
[400473894,1767624632547,-187.1804224,0.00019507,2]
[400473895,1767624632557,-153.0,0.00019507,2]
[400473896,1767624632566,-153.0,0.00019507,2]
[400473897,1767624632576,-153.0,0.00019507,2]
[400473898,1767624632586,-153.0,0.00019507,2]
[400473899,1767624632595,-231.0,0.0001952,2]
[400473900,1767624632606,-557.74183356,0.00019589,2]
[400473901,1767624632615,-160.0,0.00019611,3]
[400473902,1767624632624,-156.44082272,0.00019671,30]
[400473903,1767624632635,-151.0,0.00019676,2]
[400473904,1767624632644,-1412.44595847,0.00019915,2]
[400473905,1767624632654,-156.44082272,0.00019918,30]
[400473906,1767624632664,-67773.66115314,0.0002,2]
[400473916,1767624637789,-500.0,0.00016245,2]
[400473917,1767624637799,-236.88924933,0.00016245,2]
[400473918,1767624637808,-500.0,0.00016245,2]
[400473919,1767624637818,-137.92513076,0.00016245,2]
[400473920,1767624637906,-362.07486924,0.00016245,2]
[400473921,1767624637916,-500.0,0.00016245,2]
[400473922,1767624637926,-292.78879381,0.00016245,2]
[400473923,1767624637935,-500.0,0.00016245,2]
[400473924,1767624637944,-500.0,0.00016245,2]
[400473925,1767624637953,-500.0,0.00016245,2]
[400473926,1767624637962,-500.0,0.00016245,2]
[400473927,1767624637971,-268.42133534,0.00016245,2]
[400473928,1767624637980,-500.0,0.00016245,2]
[400473929,1767624637990,-500.0,0.00016245,2]
[400473930,1767624637999,-4265.11245527,0.0002,2]
[400473931,1767624638011,-365.68454473,0.0002,2]
[400473932,1767624638022,-1353.1442974,0.0002,2]
[400473933,1767624638033,-3522.03631563,0.0002,2]
[400474064,1767624646747,-5852.6684995,0.0002,2]
[400474065,1767624646758,-7120.75119502,0.0002,2]
[400474072,1767624647162,-12.69616832,0.0002,2]
[400474073,1767624647174,-15061.30777879,0.0002,2]
[400474075,1767624761115,153.01,8.214e-05,2]
[400474076,1767624761519,191.26,8.556e-05,2]
[400474077,1767624761936,229.51,8.898e-05,2]
[400474078,1767624762407,267.76,9.241e-05,2]
[400474081,1767624834721,165.25,7.483e-05,2]
[400474082,1767624835127,192.79,7.771e-05,2]
[400474083,1767624835786,220.33,8.059e-05,2]
[400474084,1767624836885,247.87,8.347e-05,2]
[400474085,1767624837475,275.41,8.634e-05,2]
[400474101,1767625573953,174.92,0.00030136,120]
[400474130,1767625831911,-1038.83719804,0.00012172,10]
[400474131,1767625831923,-2904.89059951,0.00012172,10]
[400474132,1767625831932,-5931.1731576,0.00012295,2]
[400474133,1767625831942,-499.93624289,0.00012295,2]
[400474134,1767625831952,-94.06375711,0.00012295,2]
[400474135,1767625831962,-300.0,0.00012298,2]
[400474136,1767625831971,-300.0,0.00012298,2]
[400474137,1767625831980,-300.0,0.00012298,2]
[400474138,1767625831990,-174.84909042,0.00012298,2]
[400474145,1767625838050,-125.15090958,0.00012298,2]
[400474146,1767625838060,-1004.0,0.000123,2]
[400474147,1767625838069,-170.94410034,0.00013043,2]
[400474148,1767625838111,-329.05589966,0.00013043,2]